Cogmind - Beta 11 @@@ ROGUE MODE // 2022.04.01 @ 22:13:36 Player: John1001 Result: Destroyed by G-47 Trooper with Particle Gun Performance ------------- Evolutions (2) 1000 Regions Visited (5) 1000 Robots Destroyed (34) 170 Value Destroyed (893) 893 Prototype IDs (0) 0 Alien Tech Used (0) 0 Bonus (35) 35 TOTAL SCORE: 3098 Bonus ------- High Alert Combat Kills 35 Cogmind --------- Core Integrity 0/550 Matter 223/300 Energy 100/100 System Corruption 0% Temperature Cool (10) Movement Flying (40) Location -8/Materials Parts ------- > --- POWER (1) -------- (None) > --- PROPULSION (4) --- Flight Unit > --- UTILITY (4) ------ Signal Interpreter > --- WEAPON (2) ------- (None) > --- INVENTORY (5) ---- Light Ion Engine Small Storage Unit Blade Saw Peak State ------------ > --- POWER ------------ (None) > --- PROPULSION ------- Improved Hover Unit Improved Hover Unit Flight Unit > --- UTILITY ---------- Signal Interpreter > --- WEAPON ----------- EMP Blaster Blade Saw > --- INVENTORY -------- Light Ion Engine Small Storage Unit [Rating: 11] Favorites ----------- Power Light Ion Engine Engine Light Ion Engine Propulsion Aluminum Leg Leg Aluminum Leg Wheel Compact Wheel Hover Unit Hover Unit Flight Unit Flight Unit Utility Small Storage Unit Storage Small Storage Unit Processor Signal Interpreter Weapon Grenade Launcher Energy Gun EM Pulse Gun Ballistic Gun Assault Rifle Ballistic Cannon Light Cannon Launcher Grenade Launcher Slashing Weapon Blade Saw Build | -11 -10 -10 -10 -9 -8 ------- Run | Scr Mat Min Exi Min Mat Slots Evolved 4 | . . . . . 4 Power . | . . . . . . Propulsion 2 | . . . . . 2 Utility 2 | . . . . . 2 Weapon . | . . . . . . Parts Attached 30 | 6 9 1 . . 14 Power 3 | 1 2 . . . . Engine 3 | 1 2 . . . . Core . | . . . . . . Reactor . | . . . . . . Propulsion 15 | 2 4 . . . 9 Treads . | . . . . . . Leg 7 | 2 4 . . . 1 Wheel 1 | . . . . . 1 Hover 4 | . . . . . 4 Flight 3 | . . . . . 3 Utility 2 | 1 1 . . . . Device . | . . . . . . Storage 1 | 1 . . . . . Processor 1 | . 1 . . . . Hackware . | . . . . . . Protection . | . . . . . . Artifact . | . . . . . . Weapon 10 | 2 2 1 . . 5 Energy Gun 1 | 1 . . . . . Energy Cannon . | . . . . . . Ballistic Gun 2 | 1 1 . . . . Ballistic Cannon 4 | . . 1 . . 3 Launcher 2 | . 1 . . . 1 Special Weapon . | . . . . . . Impact Weapon . | . . . . . . Slashing Weapon 1 | . . . . . 1 Piercing Weapon . | . . . . . . Special Melee Weapon . | . . . . . . Unidentified Prototypes . | . . . . . . Parts Lost 15 | . . 1 . . 14 Power 1 | . . . . . 1 Propulsion 9 | . . . . . 9 Utility . | . . . . . . Weapon 5 | . . 1 . . 4 Highest Loss Streak 8 | . . 1 . . 8 To Critical Strikes . | . . . . . . Average Slot Usage (%) 90 | . 91 100 100 100 58 Engine 12 | . 14 14 14 14 5 Leg 25 | . 27 28 28 28 9 Hover 1 | . . . . . 13 Storage 12 | . 14 14 14 14 6 Processor 10 | . 7 14 14 14 9 Energy Gun 1 | . 2 . . . . Ballistic Gun 5 | . 13 2 . . . Ballistic Cannon 6 | . . 12 14 14 3 Launcher 11 | . 11 14 14 14 5 Naked Turns . | . . . . . . Heaviest Build 15 | 14 15 14 14 14 14 Greatest Support 20 | 20 20 20 20 20 12 Greatest Overweight (x) 3 | 2 3 . . . 1 Average Overweight (x) . | . . . . . . Largest Inventory Capacity 8 | 8 8 8 8 8 8 Average Capacity 7 | 7 8 8 8 8 7 Most Carried 8 | 6 8 8 7 8 8 Average Carried 7 | 3 7 7 7 7 5 Final Capacity 8 | 8 8 8 8 8 5 Final Carried 8 | 6 8 7 7 8 3 Class Distribution -------------------- 90% | Mutant 9% | Scavenger-Mutant Dominant Class ---------------- Mutant | -10/Materials Mutant | -10/Mines Mutant | -10/Exiles Mutant | -9/Mines Scavenger-Mutant | -8/Materials Resources | -11 -10 -10 -10 -9 -8 ----------- Run | Scr Mat Min Exi Min Mat Matter Collected 821 | 260 297 84 . 13 167 Remotely . | . . . . . . Salvage Created 872 | . 600 82 . 23 167 Parts 66 | . 49 3 . 2 12 Haulers Intercepted 2 | . 2 . . . . Recyclers Shooed 3 | . 2 . . . 1 Parts Field Recycled . | . . . . . . Retrieved Matter . | . . . . . . Parts Self-Destructed . | . . . . . . Prevented . | . . . . . . Kills | -11 -10 -10 -10 -9 -8 ------- Run | Scr Mat Min Exi Min Mat Combat Hostiles Destroyed 23 | . 12 2 . 3 6 Guns 2 | . 2 . . . . Cannons 5 | . . 2 . . 3 AOE 16 | . 10 . . 3 3 Classes Destroyed 10 | . 6 . . 1 3 Worker 1 | . 1 . . . . Builder 4 | . 4 . . . . Hauler 2 | . 2 . . . . Operator 1 | . 1 . . . . Watcher 3 | . 3 . . . . Swarmer 3 | . . . . 3 . Cutter 2 | . . . . . 2 Grunt 15 | . 12 2 . . 1 Sentry 2 | . . . . . 2 Hunter 1 | . . . . . 1 Best Kill Streak 8 | . 8 2 . 3 3 Combat Bots Only 4 | . 4 2 . 3 3 Max Kills in Single Turn 3 | . 3 1 . 2 2 Gunslinging . | . . . . . . Exploded 2 | . 2 . . 2 2 Melee . | . . . . . . Uniques/NPCs Destroyed . | . . . . . . Combat | -11 -10 -10 -10 -9 -8 -------- Run | Scr Mat Min Exi Min Mat Damage Taken 1811 | . 285 102 . 27 1397 Core 660 | . 69 11 . 27 553 Absorbed by Shields . | . . . . . . Core Remaining (%) 78 | 100 . . . 57 . Volleys Fired 72 | . 47 5 . 2 18 Largest 2 | . 2 1 . 2 2 Hottest 70 | . 60 35 . 65 70 Shots Fired 105 | . 66 5 . 4 30 Gun 53 | . 50 3 . . . Cannon 28 | . . 2 . 2 24 Launcher 24 | . 16 . . 2 6 Special . | . . . . . . Kinetic 78 | . 47 5 . 2 24 Thermal . | . . . . . . Explosive 23 | . 16 . . 2 5 Electromagnetic 4 | . 3 . . . 1 Robot Hit Streak 8 | . 5 8 . . 7 Robot Miss Streak 5 | . 5 . . 4 2 Penetration Max . | . . . . . . Secondary Targets . | . . . . . . Shots Hit Robots 57 | . 32 5 . . 20 Core Hits 57 | . 40 3 . 2 12 Critical Kills . | . . . . . . Critical Parts Destroyed . | . . . . . . Critical Strikes 1 | . . . . . 1 Blast 1 | . . . . . 1 Melee Attacks 2 | . . . . . 2 Impact . | . . . . . . Slashing 2 | . . . . . 2 Piercing . | . . . . . . Sneak Attacks . | . . . . . . Combat Hostiles . | . . . . . . Follow-up Attacks . | . . . . . . Damage Inflicted 2022 | . 1292 75 . 154 501 Guns 430 | . 392 38 . . . Cannons 299 | . . 35 . . 264 Explosions 1276 | . 900 . . 154 222 Melee . | . . . . . . Ramming 17 | . . 2 . . 15 Kinetic 695 | . 358 73 . . 264 Thermal . | . . . . . . Explosive 1247 | . 900 . . 154 193 Electromagnetic 63 | . 34 . . . 29 Impact . | . . . . . . Slashing . | . . . . . . Piercing . | . . . . . . Highest Corruption . | . . . . . . Average Corruption . | . . . . . . Corruption Purged . | . . . . . . Corruption Blocked . | . . . . . . Overload Shots . | . . . . . . Overflow Damage 54 | . . . . 27 27 Projectiles . | . . . . . . Explosions 54 | . . . . 27 27 Melee . | . . . . . . Knockbacks 1 | . . . . . 1 Impact . | . . . . . . Kinetic 1 | . . . . . 1 Secondary . | . . . . . . Self-Inflicted Damage 133 | . 31 . . 29 73 Shots 6 | . 2 . . 1 3 Rammed 4 | . . . . . 4 Targets Rammed 6 | . 1 1 . . 4 Kicked 2 | . 1 1 . . . Crushed . | . . . . . . Highest Temperature 55 | . 12 10 . 6 55 Average Temperature 13 | . 4 6 . 3 20 Received Heat Transfer 594 | . 138 60 . . 396 Siege Activations . | . . . . . . Robots Corrupted . | . . . . . . Combat Hostiles . | . . . . . . Parts Fried . | . . . . . . Impact Corruptions . | . . . . . . Robots Melted . | . . . . . . Combat Hostiles . | . . . . . . Parts Melted . | . . . . . . Heat Transferred . | . . . . . . Parts Sabotaged . | . . . . . . Parts Stolen . | . . . . . . Parts Stripped . | . . . . . . Power Chain Reactions 1 | . . . . . 1 Missiles Intercepted . | . . . . . . Alert | -11 -10 -10 -10 -9 -8 ------- Run | Scr Mat Min Exi Min Mat Peak Influence 657 | . 657 278 . 118 281 Initial 223 | . . 223 . . 45 Average 301 | . 401 273 . 110 152 Maximum Alert Level 2 | . 2 1 . . 1 Low Security (%) 36 | 100 18 . . 100 65 Level 1 25 | . 17 100 . . 34 Level 2 38 | . 63 . . . . Level 3 . | . . . . . . Level 4 . | . . . . . . Level 5 . | . . . . . . High Security . | . . . . . . Max Security . | . . . . . . Squads Dispatched 5 | . 2 . . . 3 Investigation 1 | . 1 . . . . Extermination . | . . . . . . Reinforcement 4 | . 1 . . . 3 Assault . | . . . . . . Garrison . | . . . . . . Intercept . | . . . . . . Searches Triggered . | . . . . . . Construction Impeded . | . . . . . . Haulers Reinforced . | . . . . . . Active Scanning Responses . | . . . . . . Cargo Convoy Interrupts . | . . . . . . Stealth | -11 -10 -10 -10 -9 -8 --------- Run | Scr Mat Min Exi Min Mat Distress Signals 4 | . 3 . . . 1 Communications Jammed . | . . . . . . Distress Signals . | . . . . . . Times Spotted 49 | . 18 2 . 3 26 Peak Tracking Total 16 | . 5 2 . 3 16 Tactical Retreats 3 | . 1 . . . 2 Traps | -11 -10 -10 -10 -9 -8 ------- Run | Scr Mat Min Exi Min Mat Traps Triggered 4 | . 4 . . . . Indirectly . | . . . . . . Trap Hack Attempts . | . . . . . . Triggered . | . . . . . . Disarmed . | . . . . . . Reprogrammed . | . . . . . . Reused . | . . . . . . Traps Extracted . | . . . . . . Installed . | . . . . . . Triggered . | . . . . . . Machines | -11 -10 -10 -10 -9 -8 ---------- Run | Scr Mat Min Exi Min Mat Machines Disabled 2 | . 1 . . 1 . Max in Single Turn 1 | . 1 . . 1 . Machines Sabotaged . | . . . . . . Garrisons Compromised . | . . . . . . Overloaded Fab Kills . | . . . . . . Hacking | -11 -10 -10 -10 -9 -8 --------- Run | Scr Mat Min Exi Min Mat Machines Accessed 11 | . 3 . 4 . 4 Terminals 4 | . 2 . . . 2 Fabricators . | . . . . . . Repair Stations . | . . . . . . Recycling Units 2 | . 1 . . . 1 Scanalyzers 1 | . . . . . 1 Garrison Access . | . . . . . . Total Hacks 69 | . 11 . 49 . 9 Successful 61 | . 6 . 49 . 6 Failed 8 | . 5 . . . 3 Catastrophic 2 | . . . . . 2 Database Lockouts . | . . . . . . Manual 4 | . 4 . . . . Terminals 13 | . 8 . . . 5 Fabricators . | . . . . . . Repair Stations . | . . . . . . Recycling Units 5 | . 3 . . . 2 Scanalyzers 2 | . . . . . 2 Garrison Access . | . . . . . . Terminal Hacks 56 | . 5 . 49 . 2 Record 49 | . . . 49 . . Robot Analysis 1 | . 1 . . . . Branch Access Points 1 | . 1 . . . . Locate Traps 2 | . 1 . . . 1 Registered Components 2 | . 1 . . . 1 Zone Layout 1 | . 1 . . . . Fabricator Hacks . | . . . . . . Repair Station Hacks . | . . . . . . Recycling Unit Hacks 3 | . 1 . . . 2 Report Inventory 2 | . 1 . . . 1 Retrieve Components 1 | . . . . . 1 Scanalyzer 2 | . . . . . 2 Insert Component 1 | . . . . . 1 Analyze 1 | . . . . . 1 Garrison Access Hacks . | . . . . . . Unauthorized Hacks . | . . . . . . Terminals . | . . . . . . Fabricators . | . . . . . . Repair Stations . | . . . . . . Recycling Units . | . . . . . . Scanalyzers . | . . . . . . Garrison Access . | . . . . . . Data Cores Recovered . | . . . . . . Used . | . . . . . . Hacking Detections 7 | . 3 . . . 4 Full Trace Events . | . . . . . . Feedback Events . | . . . . . . Feedback Blocked . | . . . . . . Robot Schematics Acquired . | . . . . . . Robots Built . | . . . . . . Authchips . | . . . . . . Time . | . . . . . . Total Robot Build Rating . | . . . . . . Part Schematics Acquired 1 | . . . . . 1 Parts Built . | . . . . . . Authchips . | . . . . . . Time . | . . . . . . Total Part Build Rating . | . . . . . . Parts Repaired . | . . . . . . Time . | . . . . . . Parts Recycled . | . . . . . . Recycled Matter . | . . . . . . Retrieved Matter . | . . . . . . Retrieved Components 3 | . . . . . 3 Parts Scanalyzed 1 | . . . . . 1 Part Schematics Acquired 1 | . . . . . 1 Parts Damaged . | . . . . . . Bothacking | -11 -10 -10 -10 -9 -8 ------------ Run | Scr Mat Min Exi Min Mat Used RIF Installer . | . . . . . . Robots Hacked . | . . . . . . Non-combat . | . . . . . . Combat . | . . . . . . Robot Hacks Applied . | . . . . . . Relay Couplers Released . | . . . . . . Fabnet Peak Effective % . | . . . . . . Robots Rewired . | . . . . . . Allies Hacked . | . . . . . . Hacks Repelled . | . . . . . . Allies | -11 -10 -10 -10 -9 -8 -------- Run | Scr Mat Min Exi Min Mat Total Allies . | . . . . . . Largest Group . | . . . . . . Highest-Rated Group . | . . . . . . Highest-Rated Ally . | . . . . . . Total Orders . | . . . . . . Ally Attacks . | . . . . . . Total Damage . | . . . . . . Kills . | . . . . . . Allies Corrupted . | . . . . . . Allies Melted . | . . . . . . Intel | -11 -10 -10 -10 -9 -8 ------- Run | Scr Mat Min Exi Min Mat Robot Analysis Total 1 | . 1 . . . . Derelict Logs Recovered . | . . . . . . Drone Launches . | . . . . . . Drone Recoveries . | . . . . . . Exploration | -11 -10 -10 -10 -9 -8 ------------- Run | Scr Mat Min Exi Min Mat Turns Passed 1616 | 64 651 73 545 47 236 Spaces Moved 1285 | 40 425 51 455 34 280 Core 7 | 6 1 . . . . Treads . | . . . . . . Legs 998 | 34 424 51 455 34 . Wheels . | . . . . . . Hover 126 | . . . . . 126 Flight 154 | . . . . . 154 Fastest Speed 34 | 50 120 120 120 120 34 Average Speed 106 | 124 120 120 120 120 56 Slowest Speed 200 | 190 200 120 120 120 131 Overloaded Moves . | . . . . . . Propulsion Burnouts . | . . . . . . Robots Hopped 7 | . . . . . 7 Cave-ins Triggered . | . . . . . . Exploration Rate (%) 35 | 4 63 10 89 8 41 Regions Visited 5 Branch Regions 3 Pre-discovered Areas 1 | . . . 1 . . Known Exits Taken 4 | . 1 1 1 1 . Unknown Exits Taken 1 | 1 . . . . . Scrap Searched . | . . . . . . Spaces Dug . | . . . . . . Terrain Destroyed 145 | . 94 . . 11 40 Melee . | . . . . . . Projectile . | . . . . . . AOE 145 | . 94 . . 11 40 Terrain Rammed . | . . . . . . Walls Destroyed . | . . . . . . Machines Disabled . | . . . . . . Actions | -11 -10 -10 -10 -9 -8 --------- Run | Scr Mat Min Exi Min Mat Total 1416 | 51 499 57 454 36 319 Wait . | . . . . . . Move 1266 | 39 424 50 454 33 266 Hop 7 | . . . . . 7 Pick Up 19 | 6 8 . . 1 4 Fast Attach 12 | 6 5 . . . 1 Attach 14 | . . 1 . . 13 Detach 4 | . . . . . 4 Swap 4 | . 4 . . . . Drop 10 | . 10 . . . . Fire 72 | . 47 5 . 2 18 Melee 2 | . . . . . 2 Ram 4 | . . . . . 4 Kick 2 | . 1 1 . . . Crush . | . . . . . . Escape Stasis . | . . . . . . Rewire . | . . . . . . Trap . | . . . . . . Miscellaneous . | . . . . . . Route ------- -11/Scrapyard -10/Materials (discovered 3 exits: *Mat / *Min x2) -10/Mines -10/Exiles -9/Mines -8/Materials History --------- Turn | Location | Event 10 | -11/Scrapyard | Discovered new exit (range 16) 65 | -11/Scrapyard | Entered Materials 233 | -10/Materials | Discovered new exit (range 10) 303 | -10/Materials | Build established: Mutant 305 | -10/Materials | Identified exit to Mines 531 | -10/Materials | Identified exit to Materials 716 | -10/Materials | Entered Mines 784 | -10/Mines | Deemed a non-threat by the Exiles lab entrance 784 | -10/Mines | Discovered new exit (range 5) 787 | -10/Mines | Identified exit to Exiles 789 | -10/Mines | Entered Exiles 822 | -10/Exiles | Met 8R-AWN 839 | -10/Exiles | Met EX-HEX 887 | -10/Exiles | Met EX-DEC 893 | -10/Exiles | Learned location of Zion (-7) 950 | -10/Exiles | Visited The Gauntlet 1157 | -10/Exiles | Met EX-BIN 1325 | -10/Exiles | Discovered new exit (range 10) 1333 | -10/Exiles | Identified exit to Mines 1334 | -10/Exiles | Entered Mines 1375 | -9/Mines | Discovered new exit (range 6) 1380 | -9/Mines | Identified exit to Materials 1381 | -9/Mines | Entered Materials 1381 | -8/Materials | Evolved 4 slots: Propulsion x2, Utility x2 1527 | -8/Materials | Lost 3 parts (2n1w) 1538 | -8/Materials | Core integrity fell below 50% 1583 | -8/Materials | Lost 8 parts (1p5n2w) 1588 | -8/Materials | Core integrity fell below 20% 1617 | -8/Materials | Destroyed by G-47 Trooper with Particle Gun Last Messages --------------- 01552_ Knocked back. 01555_ C-17 Slicer knocked back. 01555_ Knocked back. 01556_ The unstable cave ceiling collapses. 01564_ Acquired EMP Blaster. 01566_ C-17 Slicer destroyed. 01566_ Chain reaction triggered in Corrupted Lgt. Nuclear Core. 01569_ Acquired Blade Saw. 01572_ K-01 Serf collects debris. 01592_ Imp. Hover Unit destroyed. 01593_ EMP Blaster destroyed. 01594_ Imp. Hover Unit destroyed. 01596_ K-01 Serf collects debris. 01603_ U-05 Engineer lays Concrete. 01603_ U-05 Engineer builds a Wall. 01604_ Acquired 11 matter. 01605_ Acquired 41 matter. 01605_ Acquired 55 matter. 01606_ Acquired 23 matter. 01611_ W-25 Informer sends out distress signal. Map ----- +----------------------------------------------------+ | ?????????????????????????????????????????????????? | | ?????????????????????????????????????????????????? | | ?????????????????????????????????????????????????? | | ?????????????????????????????????????????????????? | | ?????????????????????????????????????????????????? | | ?????????????????????????????????????????????????? | | ?????????????????????????????????????????????????? | | ######???????????????????????????????????????????? | | #???????????????????????????????????????????? | | """ #???????????????????????????????????????????? | | """ #???????????????????????????????????????????? | | """ #???????????????????????????????????????????? | | #???????????? "T"???????????????????????????? | | #?????????? ???????????????????????????? | | #?????????# ???????????????????????????? | | #?????????# ??????????????????????????? | | ######?????????# ??????????????????????????? | | #??????????????# == ??????????????????????????? | | #??????????????# =[ ?????????????????????????? | | #??????????????# ?????????????????????????? | | ########???????# ?????????????????????????? | | # !#????????? #########????????????????? | | # #??????????? ?????????????????? | | # """ #????????????? ???????????????????? | | # """ #??????????????? ?????????????????????? | | # """ ?????????????#####@##?????????????????????? | | # ???????????????#!! #?????????????????????? | | ##+###??????????????#!!gg #?????????????????????? | | #??????????????# b "" #?????????????????????? | | ################ T" #?????????????????????? | | T ! /w "" #?????????????????????? | | ##### ### # ! #?????????????????????? | | #???# #?# ## #####?????????????????????? | | ## ###???# #?# ####?????????????????????????? | | ## ###???# #?# k #????????????????????????????? | | # ###+### ##########??????????????????????? | | / % # g ##########??????????????????????? | | # = # # """ ##?????????????########## | | """ ! # = " # "R" ##??????????????# | | """ + #= #!" " %##??????????????# "" | | """ # #! +=!%% %##??????????????# """ "" | | # # #!] % %#???????????????# """ T" | | ######## [#|%!= =#???????????????# """ "" | | * ! #"/#####???????????????# "" | | %]# #?????????????????# | | ###?????????????????# = | | #######+######### #########################+#### | | ##?????????????##?# # ^ | | ??????????????????# # ^ | | ??????????????????# # ^ | +----------------------------------------------------+ Best States ------------- Heat Dissipation 31 Energy Generation 10 Energy Capacity 250 Matter Stores 300 Matter Capacity 300 Sight Range 16 Terrain Scan Density 10 Evasion (%) 62 Item Schematics ----------------- Surge Thruster | -8/Materials | Scanalyzed Robot Schematics ------------------ None Fabricated ------------ Nothing Alien Tech Used ----------------- None Achievements -------------- None Challenges ------------ None Game ------ Seed RecoilDecoderDetonator Manual? 0 Play Time 00:26:14 Cumulative 56.2 hours Start 2022.04.01 @ 21:45:23 End 2022.04.01 @ 22:13:36 Sessions 1 Manual Loads 0 Difficulty Rogue Special Mode None Game No. 25 Rogue 22 Adventurer 0 Explorer 3 Win Type - Total 0 Types 0/0/0/0/0/0/0/0/0 Lore% 48 Gallery% 39 Achievement% 38 Wizard Run 0 Options --------- ASCII 0 Keyboard 1 Movement Numpad Keybinds 0 Fullscreen 2 Font 20/Terminus Map View 98x62 Tactical HUD 1 Map Filters NONE Filters NONE Steam 1 RUN: ba57d1dd-b578-468c-babc-630e6eecd700